Cogmind - Beta 12 @@@ ROGUE MODE // 2023.12.04 @ 00:33:47 Player: Kel Result: Self-destructed Performance ------------- Evolutions (1) 500 Regions Visited (2) 400 Robots Destroyed (11) 55 Value Destroyed (278) 278 Prototype IDs (0) 0 Alien Tech Used (0) 0 Bonus (0) 0 TOTAL SCORE: 1233 Bonus ------- None Cogmind --------- Core Integrity 322/400 Matter 291/300 Energy 100/100 System Corruption 0% Temperature Cool (0) Movement Treading (320) Ox2 Location -9/Materials Parts ------- > --- POWER (2) -------- (None) > --- PROPULSION (2) --- Light Treads Light Treads > --- UTILITY (3) ------ Small Storage Unit Huge Storage Unit > --- WEAPON (2) ------- Light Assault Rifle > --- INVENTORY (25) --- Aluminum Leg Aluminum Leg Hover Unit Hover Unit Flight Unit Flight Unit Large Battery (200) Peak State ------------ > --- POWER ------------ Ion Engine Light Ion Engine > --- PROPULSION ------- Compact Wheel Compact Wheel > --- UTILITY ---------- Small Storage Unit Huge Storage Unit Terrain Scanner > --- WEAPON ----------- Medium Laser Assault Rifle > --- INVENTORY -------- Light Treads Light Treads Aluminum Leg Aluminum Leg Hover Unit Hover Unit Flight Unit Flight Unit Large Battery Light Assault Rifle [Rating: 10] Favorites ----------- Power Ion Engine Engine Ion Engine Propulsion Compact Wheel Treads Light Treads Leg Aluminum Leg Wheel Compact Wheel Flight Unit Flight Unit Utility Small Storage Unit Device Terrain Scanner Storage Small Storage Unit Weapon Assault Rifle Energy Gun Medium Laser Ballistic Gun Assault Rifle Build | -11 -10 -9 ------- Run | Jun Mat Mat Slots Evolved 2 | . . 2 Power 1 | . . 1 Propulsion . | . . . Utility 1 | . . 1 Weapon . | . . . Parts Attached 17 | 6 5 6 Power 2 | 1 . 1 Engine 2 | 1 . 1 Core . | . . . Reactor . | . . . Propulsion 9 | 2 4 3 Treads 2 | . . 2 Leg 1 | . . 1 Wheel 4 | 2 2 . Hover . | . . . Flight 2 | . 2 . Utility 3 | 1 1 1 Device 1 | . . 1 Storage 2 | 1 1 . Processor . | . . . Hackware . | . . . Protection . | . . . Artifact . | . . . Weapon 3 | 2 . 1 Energy Gun 1 | 1 . . Energy Cannon . | . . . Ballistic Gun 2 | 1 . 1 Ballistic Cannon . | . . . Launcher . | . . . Special Weapon . | . . . Impact Weapon . | . . . Slashing Weapon . | . . . Piercing Weapon . | . . . Special Melee Weapon . | . . . Unidentified Prototypes . | . . . Parts Lost 7 | . . 7 Power 2 | . . 2 Propulsion 2 | . . 2 Utility 1 | . . 1 Weapon 2 | . . 2 Highest Loss Streak 7 | . . 7 To Critical Strikes . | . . . Average Slot Usage (%) 86 | . 95 75 Engine 12 | . 14 11 Treads 3 | . . 8 Wheel 20 | . 27 11 Device 2 | . . 5 Storage 22 | . 23 22 Energy Gun 10 | . 14 5 Ballistic Gun 13 | . 14 11 Naked Turns . | . . . Heaviest Build 98 | 14 94 98 Greatest Support 40 | 32 32 40 Greatest Overweight (x) 4 | 4 2 3 Average Overweight (x) 1 | 3 1 2 Largest Inventory Capacity 25 | 8 25 25 Average Capacity 19 | 7 19 25 Most Carried 12 | 6 12 11 Average Carried 8 | 3 9 8 Final Capacity 25 | 8 25 25 Final Carried 12 | 6 12 7 Class Distribution -------------------- 100% | Mutant Dominant Class ---------------- Mutant | -10/Materials Mutant | -9/Materials Resources | -11 -10 -9 ----------- Run | Jun Mat Mat Matter Collected 495 | 258 148 89 Remotely . | . . . Salvage Created 351 | . 154 197 Parts 23 | . 13 10 Haulers Intercepted . | . . . Recyclers Shooed . | . . . Parts Field Recycled . | . . . Retrieved Matter . | . . . Parts Self-Destructed . | . . . Prevented . | . . . Kills | -11 -10 -9 ------- Run | Jun Mat Mat Combat Hostiles Destroyed 11 | . 7 4 Guns 11 | . 7 4 Classes Destroyed 3 | . 2 1 Swarmer 6 | . 6 . Grunt 3 | . 1 2 Sentry 2 | . . 2 Best Kill Streak 4 | . 3 4 Combat Bots Only 4 | . 3 4 Max Kills in Single Turn 1 | . 1 1 Gunslinging . | . . . Exploded . | . . . Melee . | . . . Uniques/NPCs Destroyed . | . . . Combat | -11 -10 -9 -------- Run | Jun Mat Mat Damage Taken 980 | . 380 600 Core 195 | . 117 78 Absorbed by Shields . | . . . Core Remaining (%) 76 | 100 53 . Volleys Fired 62 | . 32 30 Largest 2 | . 1 2 Hottest 70 | . 20 70 Shots Fired 70 | . 32 38 Gun 70 | . 32 38 Cannon . | . . . Launcher . | . . . Special . | . . . Kinetic 68 | . 32 36 Thermal 2 | . . 2 Explosive . | . . . Electromagnetic . | . . . Robot Hit Streak 11 | . 5 11 Robot Miss Streak 3 | . 3 2 Penetration Max . | . . . Secondary Targets . | . . . Shots Hit Robots 53 | . 20 33 Core Hits 23 | . 10 13 Critical Kills 1 | . . 1 Critical Parts Destroyed . | . . . Critical Strikes 1 | . . 1 Destroy 1 | . . 1 Melee Attacks . | . . . Impact . | . . . Slashing . | . . . Piercing . | . . . Sneak Attacks . | . . . Combat Hostiles . | . . . Follow-up Attacks . | . . . Damage Inflicted 613 | . 270 343 Guns 595 | . 254 341 Cannons . | . . . Explosions . | . . . Melee . | . . . Ramming 18 | . 16 2 Kinetic 570 | . 254 316 Thermal 25 | . . 25 Explosive . | . . . Electromagnetic . | . . . Impact . | . . . Slashing . | . . . Piercing . | . . . Highest Corruption . | . . . Average Corruption . | . . . Corruption Purged . | . . . Corruption Blocked . | . . . Overload Shots . | . . . Overflow Damage . | . . . Projectiles . | . . . Explosions . | . . . Melee . | . . . Knockbacks . | . . . Impact . | . . . Kinetic . | . . . Secondary . | . . . Self-Inflicted Damage 7 | . 7 . Shots . | . . . Rammed 5 | . 4 1 Targets Rammed 5 | . 4 1 Kicked . | . . . Crushed . | . . . Highest Temperature 21 | . . 21 Average Temperature 7 | . . 7 Received Heat Transfer 198 | . 12 186 Siege Activations . | . . . Robots Corrupted . | . . . Combat Hostiles . | . . . Parts Fried . | . . . Impact Corruptions . | . . . Robots Melted . | . . . Combat Hostiles . | . . . Parts Melted . | . . . Heat Transferred 74 | . . 74 Parts Sabotaged . | . . . Parts Stolen . | . . . Parts Stripped . | . . . Power Chain Reactions . | . . . Missiles Intercepted . | . . . Alert | -11 -10 -9 ------- Run | Jun Mat Mat Peak Influence 200 | . 200 169 Initial 84 | . . 84 Average 102 | . 132 105 Maximum Alert Level 1 | . 1 . Low Security (%) 93 | 100 87 100 Level 1 6 | . 12 . Level 2 . | . . . Level 3 . | . . . Level 4 . | . . . Level 5 . | . . . High Security . | . . . Max Security . | . . . Squads Dispatched 2 | . 2 . Investigation . | . . . Extermination . | . . . Reinforcement 2 | . 2 . Assault . | . . . Garrison . | . . . Intercept . | . . . Searches Triggered . | . . . Construction Impeded . | . . . Haulers Reinforced . | . . . Active Scanning Responses . | . . . Cargo Convoy Interrupts . | . . . Stealth | -11 -10 -9 --------- Run | Jun Mat Mat Distress Signals 1 | . . 1 Communications Jammed . | . . . Distress Signals . | . . . Times Spotted 23 | . 12 11 Peak Tracking Total 6 | . 6 5 Tactical Retreats 1 | . . 1 Traps | -11 -10 -9 ------- Run | Jun Mat Mat Traps Triggered . | . . . Indirectly . | . . . Trap Hack Attempts . | . . . Triggered . | . . . Disarmed . | . . . Reprogrammed . | . . . Reused . | . . . Traps Extracted . | . . . Installed . | . . . Triggered . | . . . Machines | -11 -10 -9 ---------- Run | Jun Mat Mat Machines Disabled . | . . . Max in Single Turn . | . . . Machines Repaired . | . . . Machines Sabotaged . | . . . Overloaded Fab Kills . | . . . Hacking | -11 -10 -9 --------- Run | Jun Mat Mat Machines Accessed . | . . . Terminals . | . . . Fabricators . | . . . Repair Stations . | . . . Recycling Units . | . . . Scanalyzers . | . . . Garrison Access . | . . . Total Hacks . | . . . Successful . | . . . Failed . | . . . Catastrophic . | . . . Database Lockouts . | . . . Manual . | . . . Terminals . | . . . Fabricators . | . . . Repair Stations . | . . . Recycling Units . | . . . Scanalyzers . | . . . Garrison Access . | . . . Terminal Hacks . | . . . Fabricator Hacks . | . . . Repair Station Hacks . | . . . Recycling Unit Hacks . | . . . Scanalyzer . | . . . Garrison Access Hacks . | . . . Unauthorized Hacks . | . . . Terminals . | . . . Fabricators . | . . . Repair Stations . | . . . Recycling Units . | . . . Scanalyzers . | . . . Garrison Access . | . . . Data Cores Recovered . | . . . Used . | . . . Hacking Detections . | . . . Full Trace Events . | . . . Feedback Events . | . . . Feedback Blocked . | . . . Robot Schematics Acquired . | . . . Robots Built . | . . . Authchips . | . . . Time . | . . . Total Robot Build Rating . | . . . Part Schematics Acquired . | . . . Parts Built . | . . . Authchips . | . . . Time . | . . . Total Part Build Rating . | . . . Parts Repaired . | . . . Time . | . . . Parts Recycled . | . . . Recycled Matter . | . . . Retrieved Matter . | . . . Retrieved Components . | . . . Parts Scanalyzed . | . . . Part Schematics Acquired . | . . . Parts Damaged . | . . . Bothacking | -11 -10 -9 ------------ Run | Jun Mat Mat Used RIF Installer . | . . . Robots Hacked . | . . . Non-combat . | . . . Combat . | . . . Robot Hacks Applied . | . . . Relay Couplers Released . | . . . Fabnet Peak Effective % . | . . . Robots Rewired . | . . . Allies Hacked . | . . . Hacks Repelled . | . . . Allies | -11 -10 -9 -------- Run | Jun Mat Mat Total Allies . | . . . Largest Group . | . . . Highest-Rated Group . | . . . Highest-Rated Ally . | . . . Total Orders . | . . . Ally Attacks . | . . . Total Damage . | . . . Kills . | . . . Allies Corrupted . | . . . Allies Melted . | . . . Intel | -11 -10 -9 ------- Run | Jun Mat Mat Robot Analysis Total . | . . . Derelict Logs Recovered . | . . . Drone Launches . | . . . Drone Recoveries . | . . . Exploration | -11 -10 -9 ------------- Run | Jun Mat Mat Turns Passed 688 | 105 333 250 Spaces Moved 325 | 42 207 76 Core 40 | 40 . . Treads 28 | . . 28 Legs . | . . . Wheels 253 | 2 203 48 Hover . | . . . Flight 4 | . 4 . Fastest Speed 50 | 50 100 145 Average Speed 151 | 204 119 209 Slowest Speed 320 | 250 130 320 Overloaded Moves . | . . . Propulsion Burnouts . | . . . Robots Hopped . | . . . Cave-ins Triggered . | . . . Exploration Rate (%) 17 | 5 37 11 Regions Visited 2 Branch Regions . Pre-discovered Areas . | . . . Known Exits Taken . | . . . Unknown Exits Taken 2 | 1 1 . Scrap Searched . | . . . Spaces Dug . | . . . Terrain Destroyed . | . . . Melee . | . . . Projectile . | . . . AOE . | . . . Terrain Rammed . | . . . Walls Destroyed . | . . . Machines Disabled . | . . . Actions | -11 -10 -9 --------- Run | Jun Mat Mat Total 444 | 58 257 129 Wait 25 | 5 4 16 Move 323 | 41 206 76 Hop . | . . . Pick Up 12 | 6 6 . Fast Attach 7 | 6 1 . Attach 5 | . . 5 Detach . | . . . Swap 5 | . 4 1 Drop . | . . . Fire 62 | . 32 30 Melee . | . . . Ram 4 | . 4 . Kick . | . . . Crush 1 | . . 1 Escape Stasis . | . . . Rewire . | . . . Trap . | . . . Miscellaneous . | . . . Route ------- -11/Junkyard -10/Materials (discovered 2 exits: [*Mat] / [*Min]) -9/Materials History --------- Turn | Location | Event 36 | -11/Junkyard | Discovered new exit (range 15) 106 | -11/Junkyard | Entered Materials 240 | -10/Materials | Discovered new exit (range 15) 309 | -10/Materials | Build established: Mutant 350 | -10/Materials | Discovered new exit (range 7) 439 | -10/Materials | Entered another Materials area 439 | -9/Materials | Evolved 2 slots: Power x1, Utility x1 611 | -9/Materials | Lost 7 parts (2p2n1u2w) 689 | -9/Materials | Self-destructed Last Messages --------------- 00572_ G-47 Trooper destroyed. 00573_ R-06 Scavenger collects Particle Gun. 00574_ Assault Rifle destroyed. 00575_ R-06 Scavenger collects Hvy. Assault Rifle. 00576_ R-06 Scavenger collects Aluminum Leg. 00577_ Terrain Scanner destroyed. 00578_ R-06 Scavenger collects Heat Sink. 00580_ Lgt. Ion Engine destroyed. 00581_ K-01 Serf collects debris. 00583_ R-06 Scavenger collects Aluminum Leg. 00584_ K-01 Serf collects debris. 00587_ Y-45 Defender destroyed. 00590_ K-01 Serf collects debris. 00593_ Acquired 55 matter. 00595_ K-01 Serf collects debris. 00596_ Slammed into K-01 Serf. 00597_ R-06 Scavenger collects Heat Sink. 00599_ Acquired 34 matter. 00649_ W-16 Scout sends out distress signal. 00670_ K-01 Serf collects debris. Map ----- +----------------------------------------------------+ | ?????????????????????????????????????????????????? | | ?????????????????????????????????????????????????? | | ?????????????????????????????????????????????????? | | ?????????????????????????????????????????????????? | | ?????????????????????????????????????????????????? | | ???????????????????????? ????????????????????? | | ???????????????????????? ????????????????????? | | ???????????????????????? ????????????????????? | | ???????????????????????? ????????????????????? | | ???????????????????????? ????????????????????? | | ????????????????????????# #????????????????????? | | ?????????????????######## #????#???????????????? | | ?????????????????# # #????????????????????? | | ?????????????????# """ # k#######??????????????? | | ?????????######### """ # gg# #?? ???????????? | | ??? + """ # # #?? ???????????? | | ??????????######## # w # #??? ??????????? | | ?????????????????# """ # # # ???????????? | | ?????????????????# """ # # # ???? ??????? | | ?????????????????# """ # %# # #??????????? | | ?????????????????# + + # ##??######?? | | ?????????????????# " #s %# # # #?? | | ???????????????? # T # # # # "S #?? | | ??????????????"??# " # # # # """ !!!#?? | | ?????????????????# # # # # "" !!!#?? | | ?????????????????########@ # # # !!!#?? | | ????????????????????????# ####### # #?? | | ??????????????????????"?# #?????# # #?? | | ????????????????????????# #?????# # ??? | | ????????????????????????# #????## # ????? | | ??????????????? ?????? ?# ####### ####+####### | | ????????????????????????# | | ????????????????????????# | | ????????????????????????# | | ????????????????????##??####+######+########## | | ?????????????????????????# # #??# | | ???????????????#?????????# # #??# # | | ?????????????????????????# """ # #??# # | | ?????????????????????????# """ # #?###### | | ?????????????????????????# """ # """ """ #??????? | | ?????????????????????????# # """ """ #??????? | | ?????????????????????????######## """ """ #??????? | | ???????????????????????##???????# #??????? | | ?????????????????????????#????#?###########??????? | | ????????????????????????????????????????????#????? | | ??????????????????????????#??????????????????????? | | ?????????????????????????????#???????????????????? | | ?????????????????????????????????????????????????? | | | | | +----------------------------------------------------+ Best States ------------- Heat Dissipation 28 Energy Generation 10 Energy Capacity 275 Matter Stores 300 Matter Capacity 300 Sight Range 16 Terrain Scan Range 14 Terrain Scan Density 10 Evasion (%) 40 Recoil Reduction 2 Item Schematics ----------------- None Robot Schematics ------------------ None Fabricated ------------ Nothing Alien Tech Used ----------------- None Achievements -------------- None Challenges ------------ None Game ------ Seed DamperNetworkClaw Manual? 0 Play Time 00:07:52 Cumulative 10.3 hours Start 2023.12.04 @ 00:27:42 End 2023.12.04 @ 00:33:47 Sessions 1 Manual Loads 0 Difficulty Rogue Special Mode None Game No. 15 Rogue 15 Adventurer 0 Explorer 0 Win Type - Total 0 Types 0/0/0/0/0/0/0/0/0 Lore% 15 Gallery% 16 Achievement% 13 Wizard Run 0 Options --------- ASCII 0 Keyboard 1 Movement Numpad Keybinds 0 Fullscreen 1 Font 18/Terminus Map View 76x50 Tactical HUD 1 Map Filters NONE Filters NONE Steam 1 RUN: 9470b0b4-504b-41e0-b8b3-870dff30c373